{"text_format":"3","workbook":"xlsx","n_sheets":1,"sheets":["Tension artérielle et glycémie"],"not_rendered":{"defined_names":9},"read":"whole","date_system":"1900"}

{"sheet":"Tension artérielle et glycémie","index":0,"n_rows":13,"n_cols":11,"rows_kept":13,"merged":[[0,1,4,3],[0,4,0,9],[1,4,1,6],[1,7,1,9]]}
[null,"Contrôleur de tension artérielle et de glycémie",null,null,"Personnalisez les valeurs d’échelle dans les cellules E2 à J5 ci-dessous."]
[{"$nulls":4},"TENSION ARTÉRIELLE",null,null,"ÉCHELLE GLYCÉMIQUE"]
[{"$nulls":4},120,"SYSTOLE",140,70,100,150]
[{"$nulls":4},80,"DIASTOLE",90,"FAIBLE","NORMAL","ÉLEVÉ"]
[{"$nulls":4},"TENSION CIBLE",null,"APPELER MÉDECIN"]
[null,"Date","Heure","Événement","Systole","Diastole","Fréquence cardiaque","Glucose","Niveau","État","Notes"]
[null,{"$f":"TODAY()","v":"2022-08-03"},"06:00:00","Réveil",129,79,72,55,{"$f":"TensionArtérielleEtGlycémie[[#This Row],[Glucose]]","v":55},{"$f":"IFERROR(IF(TensionArtérielleEtGlycémie[[#This Row],[Niveau]]=0,\"\",IF(TensionArtérielleEtGlycémie[[#This Row],[Niveau]]<=GFaible,\"Faible\",IF(AND(TensionArtérielleEtGlycémie[[#This Row],[Niveau]]>GFaible,TensionArtérielleEtGlycémie[[#This Row],[Niveau]]<GÉlevé),\"Normal\",\"Élevé\"))), \"\")","v":"Faible"}]
[null,{"$f":"TODAY()","v":"2022-08-03"},"07:00:00","Avant le repas",120,80,74,70,{"$f":"TensionArtérielleEtGlycémie[[#This Row],[Glucose]]","v":70},{"$f":"IFERROR(IF(TensionArtérielleEtGlycémie[[#This Row],[Niveau]]=0,\"\",IF(TensionArtérielleEtGlycémie[[#This Row],[Niveau]]<=GFaible,\"Faible\",IF(AND(TensionArtérielleEtGlycémie[[#This Row],[Niveau]]>GFaible,TensionArtérielleEtGlycémie[[#This Row],[Niveau]]<GÉlevé),\"Normal\",\"Élevé\"))), \"\")","v":"Faible"}]
[null,"2022-08-03","09:00:00","Après le repas",133,80,75,75,{"$f":"TensionArtérielleEtGlycémie[[#This Row],[Glucose]]","v":75},{"$f":"IFERROR(IF(TensionArtérielleEtGlycémie[[#This Row],[Niveau]]=0,\"\",IF(TensionArtérielleEtGlycémie[[#This Row],[Niveau]]<=GFaible,\"Faible\",IF(AND(TensionArtérielleEtGlycémie[[#This Row],[Niveau]]>GFaible,TensionArtérielleEtGlycémie[[#This Row],[Niveau]]<GÉlevé),\"Normal\",\"Élevé\"))), \"\")","v":"Normal"}]
[null,"2022-08-03","10:00:00","TA seulement",143,91,75,190,{"$f":"TensionArtérielleEtGlycémie[[#This Row],[Glucose]]","v":190},{"$f":"IFERROR(IF(TensionArtérielleEtGlycémie[[#This Row],[Niveau]]=0,\"\",IF(TensionArtérielleEtGlycémie[[#This Row],[Niveau]]<=GFaible,\"Faible\",IF(AND(TensionArtérielleEtGlycémie[[#This Row],[Niveau]]>GFaible,TensionArtérielleEtGlycémie[[#This Row],[Niveau]]<GÉlevé),\"Normal\",\"Élevé\"))), \"\")","v":"Élevé"}]
[null,"2022-08-03","12:00:00","Avant le repas",141,84,70,140,{"$f":"TensionArtérielleEtGlycémie[[#This Row],[Glucose]]","v":140},{"$f":"IFERROR(IF(TensionArtérielleEtGlycémie[[#This Row],[Niveau]]=0,\"\",IF(TensionArtérielleEtGlycémie[[#This Row],[Niveau]]<=GFaible,\"Faible\",IF(AND(TensionArtérielleEtGlycémie[[#This Row],[Niveau]]>GFaible,TensionArtérielleEtGlycémie[[#This Row],[Niveau]]<GÉlevé),\"Normal\",\"Élevé\"))), \"\")","v":"Normal"}]
[null,{"$f":"TODAY()","v":"2022-08-03"},"15:00:00","Après le repas",132,80,68,90,{"$f":"TensionArtérielleEtGlycémie[[#This Row],[Glucose]]","v":90},{"$f":"IFERROR(IF(TensionArtérielleEtGlycémie[[#This Row],[Niveau]]=0,\"\",IF(TensionArtérielleEtGlycémie[[#This Row],[Niveau]]<=GFaible,\"Faible\",IF(AND(TensionArtérielleEtGlycémie[[#This Row],[Niveau]]>GFaible,TensionArtérielleEtGlycémie[[#This Row],[Niveau]]<GÉlevé),\"Normal\",\"Élevé\"))), \"\")","v":"Normal"},"A pris des médicaments pour la TA avec un repas."]
[null,"Moyenne",null,null,{"$f":"SUBTOTAL(101,TensionArtérielleEtGlycémie[Systole])","v":133},{"$f":"SUBTOTAL(101,TensionArtérielleEtGlycémie[Diastole])","v":{"v":82.33333333333333,"d":"82"}},{"$f":"SUBTOTAL(101,TensionArtérielleEtGlycémie[Fréquence cardiaque])","v":{"v":72.33333333333333,"d":"72"}},{"$f":"SUBTOTAL(101,TensionArtérielleEtGlycémie[Glucose])","v":{"v":103.33333333333333,"d":"103"}}]